Cogmind - Beta 14 @@@ ROGUE MODE // 2024.10.14 @ 09:23:07 Player: Cmdr.Laserstrahl Result: Destroyed by 9E-XQO(R) with Subdweller Laser Performance ------------- Evolutions (0) 0 Regions Visited (3) 600 Robots Destroyed (8) 40 Value Destroyed (86) 86 Prototype IDs (0) 0 Alien Tech Used (0) 0 Bonus (0) 0 TOTAL SCORE: 726 Bonus ------- None Cogmind --------- Core Integrity 0/250 Matter 285/300 Energy 70/100 System Corruption 0% Temperature Cool (6) Movement Rolling (140) Ox4 Location -10/Subcaves Parts ------- > --- POWER (1) -------- (None) > --- PROPULSION (2) --- Wheel > --- UTILITY (2) ------ High-capacity Storage Unit Seismic Detector > --- WEAPON (2) ------- (None) > --- INVENTORY (20) --- Ion Engine Aluminum Leg Aluminum Leg Aluminum Leg Aluminum Leg Wheel Compact Wheel Compact Wheel Heat Sink Small Storage Unit Structural Scanner Improved Terrain Scanner Assault Rifle Peak State ------------ > --- POWER ------------ Light Ion Engine > --- PROPULSION ------- Wheel Compact Wheel > --- UTILITY ---------- High-capacity Storage Unit Seismic Detector > --- WEAPON ----------- EM Pulse Gun Medium Laser > --- INVENTORY -------- Light Ion Engine Aluminum Leg Aluminum Leg Wheel Wheel Compact Wheel Small Storage Unit Structural Scanner EM Pulse Gun Assault Rifle [Rating: 8] Favorites ----------- Power Light Ion Engine Engine Light Ion Engine Propulsion Compact Wheel Wheel Compact Wheel Utility High-capacity Storage Unit Device Seismic Detector Storage High-capacity Storage Unit Weapon EM Pulse Gun Energy Gun EM Pulse Gun Launcher Grenade Launcher Build | -11 -10 -10 -10 ------- Run | Yrd Mat Min Sub Slots Evolved . | . . . . Power . | . . . . Propulsion . | . . . . Utility . | . . . . Weapon . | . . . . Parts Attached 18 | 8 3 5 2 Power 3 | 1 1 1 . Engine 3 | 1 1 1 . Core . | . . . . Reactor . | . . . . Propulsion 5 | 2 . 2 1 Treads . | . . . . Leg . | . . . . Wheel 5 | 2 . 2 1 Hover . | . . . . Flight . | . . . . Utility 5 | 2 1 2 . Device 3 | 1 . 2 . Storage 2 | 1 1 . . Processor . | . . . . Hackware . | . . . . Protection . | . . . . Artifact . | . . . . Weapon 5 | 3 1 . 1 Energy Gun 4 | 3 1 . . Energy Cannon . | . . . . Ballistic Gun . | . . . . Ballistic Cannon . | . . . . Launcher 1 | . . . 1 Special Weapon . | . . . . Impact Weapon . | . . . . Slashing Weapon . | . . . . Piercing Weapon . | . . . . Special Melee Weapon . | . . . . Unidentified Prototypes . | . . . . Parts Lost 9 | . 3 . 6 Power 1 | . . . 1 Propulsion 3 | . 1 . 2 Utility 1 | . 1 . . Weapon 4 | . 1 . 3 Highest Loss Streak 6 | . 3 . 6 To Critical Strikes . | . . . . Average Slot Usage (%) 98 | . 98 99 95 Engine 13 | . 14 14 12 Wheel 27 | . 26 28 28 Device 13 | . 13 13 14 Storage 14 | . 14 14 14 Energy Gun 27 | . 28 28 26 Peak Build Rating 8 | 7 8 8 8 Average Rating 7 | 4 7 7 7 On Entrance 5 | . 7 6 8 Naked Turns . | . . . . Heaviest Build 50 | 13 50 48 48 Greatest Support 32 | 26 26 32 26 Greatest Overweight (x) 4 | . 3 1 4 Average Overweight (x) . | . . 1 1 Largest Inventory Capacity 20 | 8 20 20 20 Average Capacity 16 | 6 16 20 20 Most Carried 15 | 7 14 15 15 Average Carried 11 | 3 11 12 14 Final Capacity 20 | 8 20 20 20 Final Carried 15 | 7 13 15 13 Class Distribution -------------------- 100% | Mutant Dominant Class ---------------- Mutant | -10/Materials Mutant | -10/Mines Mutant | -10/Subcaves Resources | -11 -10 -10 -10 ----------- Run | Yrd Mat Min Sub Matter Collected 345 | 280 20 40 5 Remotely . | . . . . Salvage Created 232 | 81 137 14 . Parts 23 | 6 12 5 . Haulers Intercepted 1 | . 1 . . Recyclers Shooed . | . . . . Parts Field Recycled . | . . . . Retrieved Matter . | . . . . Parts Self-Destructed 1 | . . . 1 Prevented 1 | . . . 1 Kills | -11 -10 -10 -10 ------- Run | Yrd Mat Min Sub Combat Hostiles Destroyed 4 | . 4 . . Guns 3 | . 3 . . AOE 1 | . 1 . . Classes Destroyed 5 | 2 3 . . Tunneler 2 | 1 . 1 . Hauler 1 | . 1 . . Recycler 1 | 1 . . . Swarmer 3 | . 3 . . Grunt 1 | . 1 . . Best Kill Streak 3 | 2 3 1 . Combat Bots Only 2 | . 2 . . Max Kills in Single Turn 1 | 1 1 1 . Gunslinging . | . . . . Exploded 1 | . 1 . . Melee . | . . . . Uniques/NPCs Destroyed . | . . . . Combat | -11 -10 -10 -10 -------- Run | Yrd Mat Min Sub Hostile Shots Fired 72 | . 39 . 33 Missed 21 | . 13 . 8 Damage Taken 779 | . 337 . 442 Core 266 | . 95 . 171 Absorbed by Shields . | . . . . Core Remaining (%) 100 | 100 . . . Volleys Fired 29 | 9 14 1 5 Largest 2 | 2 2 2 2 Hottest 90 | 90 90 90 90 Shots Fired 49 | 10 28 2 9 Gun 48 | 10 28 2 8 Cannon . | . . . . Launcher 1 | . . . 1 Special . | . . . . Kinetic . | . . . . Thermal 29 | 9 14 1 5 Explosive 1 | . . . 1 Electromagnetic 19 | 1 14 1 3 Robot Hit Streak 5 | 4 3 4 5 Robot Miss Streak 3 | 1 3 . 2 Penetration Max . | . . . . Secondary Targets . | . . . . Shots Hit Robots 29 | 8 14 1 6 Core Hits 12 | 3 6 1 2 Critical Kills . | . . . . Critical Parts Destroyed . | . . . . Critical Strikes 2 | . 1 . 1 Burn 2 | . 1 . 1 Melee Attacks . | . . . . Impact . | . . . . Slashing . | . . . . Piercing . | . . . . Sneak Attacks . | . . . . Combat Hostiles . | . . . . Follow-up Attacks . | . . . . Damage Inflicted 600 | 102 263 13 222 Guns 363 | 102 171 13 77 Cannons . | . . . . Explosions 237 | . 92 . 145 Melee . | . . . . Ramming . | . . . . Kinetic . | . . . . Thermal 304 | 89 152 13 50 Explosive 145 | . . . 145 Electromagnetic 151 | 13 111 . 27 Impact . | . . . . Slashing . | . . . . Piercing . | . . . . Highest Corruption . | . . . . Average Corruption . | . . . . Corruption Purged . | . . . . Corruption Blocked . | . . . . Overload Shots . | . . . . Overflow Damage 10 | . 10 . . Projectiles . | . . . . Explosions 10 | . 10 . . Melee . | . . . . Knockbacks . | . . . . Impact . | . . . . Kinetic . | . . . . Secondary . | . . . . Self-Inflicted Damage 40 | . 40 . . Shots 1 | . 1 . . Rammed . | . . . . Targets Rammed . | . . . . Kicked . | . . . . Crushed . | . . . . Highest Temperature 192 | 60 192 . 8 Average Temperature 58 | 26 72 . 5 Received Heat Transfer 336 | . 117 . 219 Siege Activations . | . . . . Robots Corrupted . | . . . . Combat Hostiles . | . . . . Parts Fried . | . . . . Impact Corruptions . | . . . . Robots Melted . | . . . . Combat Hostiles . | . . . . Parts Melted 1 | 1 . . . Heat Transferred 927 | 259 409 37 222 Parts Sabotaged . | . . . . Parts Stolen . | . . . . Parts Stripped . | . . . . Power Chain Reactions 2 | . 2 . . Alert | -11 -10 -10 -10 ------- Run | Yrd Mat Min Sub Peak Influence 145 | 10 145 55 . Initial 50 | . 6 50 . Average 41 | 2 47 51 . Maximum Alert Level . | . . . . Low Security (%) 100 | 100 100 100 . Level 1 . | . . . . Level 2 . | . . . . Level 3 . | . . . . Level 4 . | . . . . Level 5 . | . . . . High Security . | . . . . Max Security . | . . . . Squads Dispatched 1 | . 1 . . Investigation . | . . . . Extermination . | . . . . Reinforcement 1 | . 1 . . Assault . | . . . . Garrison . | . . . . Intercept . | . . . . Searches Triggered . | . . . . Construction Impeded . | . . . . Haulers Reinforced . | . . . . Active Scanning Responses . | . . . . Cargo Convoy Interrupts . | . . . . Stealth | -11 -10 -10 -10 --------- Run | Yrd Mat Min Sub Distress Signals . | . . . . Communications Jammed . | . . . . Distress Signals . | . . . . Times Spotted 17 | . 10 . 7 Peak Tracking Total 6 | . 5 . 6 Tactical Retreats 2 | . 2 . . Traps | -11 -10 -10 -10 ------- Run | Yrd Mat Min Sub Traps Triggered . | . . . . Indirectly . | . . . . Trap Hack Attempts . | . . . . Triggered . | . . . . Disarmed . | . . . . Reprogrammed . | . . . . Reused . | . . . . Traps Extracted . | . . . . Installed . | . . . . Triggered . | . . . . Machines | -11 -10 -10 -10 ---------- Run | Yrd Mat Min Sub Machines Disabled . | . . . . Max in Single Turn . | . . . . Machines Repaired . | . . . . Machines Dismantled . | . . . . Machines Sabotaged . | . . . . Overloaded Fab Kills . | . . . . Hacking | -11 -10 -10 -10 --------- Run | Yrd Mat Min Sub Machines Accessed 4 | . 4 . . Terminals 4 | . 4 . . Fabricators . | . . . . Repair Stations . | . . . . Recycling Units . | . . . . Scanalyzers . | . . . . Garrison Access . | . . . . Total Hacks 11 | . 11 . . Successful 4 | . 4 . . Failed 7 | . 7 . . Catastrophic 3 | . 3 . . Database Lockouts . | . . . . Manual 10 | . 10 . . Terminals 11 | . 11 . . Fabricators . | . . . . Repair Stations . | . . . . Recycling Units . | . . . . Scanalyzers . | . . . . Garrison Access . | . . . . Terminal Hacks 2 | . 2 . . Robot Schematic 1 | . 1 . . Dispatch Records 1 | . 1 . . Fabricator Hacks . | . . . . Repair Station Hacks . | . . . . Recycling Unit Hacks . | . . . . Scanalyzer . | . . . . Garrison Access Hacks . | . . . . Unauthorized Hacks 2 | . 2 . . Terminals 2 | . 2 . . Botnet 2 | . 2 . . Fabricators . | . . . . Repair Stations . | . . . . Recycling Units . | . . . . Scanalyzers . | . . . . Garrison Access . | . . . . Data Cores Recovered . | . . . . Used . | . . . . Hacking Detections 4 | . 4 . . Full Trace Events . | . . . . Feedback Events . | . . . . Feedback Blocked . | . . . . Robot Schematics Acquired 1 | . 1 . . Robots Built . | . . . . Authchips . | . . . . Time . | . . . . Total Robot Build Rating . | . . . . Part Schematics Acquired . | . . . . Parts Built . | . . . . Authchips . | . . . . Time . | . . . . Total Part Build Rating . | . . . . Parts Repaired . | . . . . Time . | . . . . Parts Recycled . | . . . . Recycled Matter . | . . . . Retrieved Matter . | . . . . Retrieved Components . | . . . . Parts Scanalyzed . | . . . . Part Schematics Acquired . | . . . . Parts Damaged . | . . . . Bothacking | -11 -10 -10 -10 ------------ Run | Yrd Mat Min Sub Used RIF Installer . | . . . . Robots Hacked . | . . . . Non-combat . | . . . . Combat . | . . . . Robot Hacks Applied . | . . . . Relay Couplers Released . | . . . . Fabnet Peak Effective % . | . . . . Robots Rewired . | . . . . Allies Hacked . | . . . . Hacks Repelled . | . . . . Allies | -11 -10 -10 -10 -------- Run | Yrd Mat Min Sub Total Allies . | . . . . Largest Group . | . . . . Highest-Rated Group . | . . . . Highest-Rated Ally . | . . . . Total Orders . | . . . . Ally Attacks . | . . . . Total Damage . | . . . . Kills . | . . . . Allies Corrupted . | . . . . Allies Melted . | . . . . Intel | -11 -10 -10 -10 ------- Run | Yrd Mat Min Sub Robot Analysis Total . | . . . . Derelict Logs Recovered 1 | . . 1 . Drone Launches . | . . . . Drone Recoveries . | . . . . Exploration | -11 -10 -10 -10 ------------- Run | Yrd Mat Min Sub Turns Passed 558 | 83 234 170 71 Spaces Moved 403 | 52 171 137 43 Core 14 | 14 . . . Treads . | . . . . Legs . | . . . . Wheels 389 | 38 171 137 43 Hover . | . . . . Flight . | . . . . Fastest Speed 50 | 50 90 105 105 Average Speed 102 | 79 101 111 106 Slowest Speed 145 | 90 145 115 140 Overloaded Moves . | . . . . Propulsion Burnouts . | . . . . Robots Hopped . | . . . . Cave-ins Triggered . | . . . . Exploration Rate (%) 21 | 5 38 36 5 Regions Visited 3 Branch Regions 2 Pre-discovered Areas . | . . . . Known Exits Taken . | . . . . Unknown Exits Taken 3 | 1 1 1 . Scrap Searched 2 | . . 2 . Spaces Dug . | . . . . Terrain Destroyed 16 | . 5 . 11 Melee . | . . . . Projectile . | . . . . AOE 16 | . 5 . 11 Terrain Rammed . | . . . . Walls Destroyed . | . . . . Machines Disabled . | . . . . Actions | -11 -10 -10 -10 --------- Run | Yrd Mat Min Sub Total 496 | 82 204 150 60 Wait 22 | 1 7 4 10 Move 400 | 51 170 136 43 Hop . | . . . . Pick Up 25 | 13 8 4 . Fast Attach 1 | 1 . . . Attach 11 | 6 1 2 2 Detach . | . . . . Swap 6 | 1 2 3 . Drop 2 | . 2 . . Fire 29 | 9 14 1 5 Melee . | . . . . Ram . | . . . . Kick . | . . . . Crush . | . . . . Escape Stasis . | . . . . Rewire . | . . . . Trap . | . . . . Miscellaneous . | . . . . Route ------- -11/Scrapyard -10/Materials -10/Mines -10/Subcaves (discovered 1 exit: [*Mat]) History --------- Turn | Location | Event 9 | -11/Scrapyard | Discovered new exit (range 15) 84 | -11/Scrapyard | Entered Materials 228 | -10/Materials | Discovered new exit (range 16) 314 | -10/Materials | Build established: Mutant 318 | -10/Materials | Entered Mines 331 | -10/Mines | Lost 3 parts (1n1u1w) 333 | -10/Mines | YI-UF0 nonchalantly dropped a Grenade Launcher on the ground 349 | -10/Mines | Learned Materials emergency access door positions 482 | -10/Mines | Discovered new exit (range 6) 488 | -10/Mines | Entered Subcaves 512 | -10/Subcaves | Discovered new exit (range 9) 544 | -10/Subcaves | Core integrity fell below 50% 557 | -10/Subcaves | Core integrity fell below 20% 559 | -10/Subcaves | Destroyed by 9E-XQO(R) with Subdweller Laser Last Messages --------------- GOAL=ESCAPE 00511_ SA-Q1W(u) builds Twisted Machinery. 00512_ EXIT=FOUND 00542_ G-34 Mercenary suffers critical hit (Burn). 00543_ Lgt. Ion Engine destroyed. 00544_ G-34 Mercenary destroyed. 00546_ Acquired 5 matter. 00548_ Corrupted Sml. Laser self-destruct mechanism malfunctions. 00549_ EM Pulse Gun destroyed. 00551_ Wheel destroyed. 00552_ Aluminum Leg fries itself beyond repair. 00553_ Critical hit (Burn: +37). 00554_ Med. Laser destroyed. 00555_ Critical hit (Burn: +37). 00556_ V3-SXK(R): "ARGHSUB!" 00556_ Com. Wheel destroyed. 00556_ Grenade Launcher destroyed. 00558_ I8-FNO(R) destroyed. Map ----- +----------------------------------------------------+ | ?????????????????????????????????????????????????? | | ?????????????????????????????????????????????????? | | ?????????????????????????????????????????????????? | | ?????????????????????????????????????????????????? | | ?????????????????????????????????????????????????? | | ?????????????????????????????????????????????????? | | ?????????????????????????????????????????????????? | | ?????????????????????????????????????????????????? | | ?????????????????????????????????????????????????? | | ?????????????????????????????????????????????????? | | ?????????????????????????????????????????????????? | | ?????????????????????????????????????????????????? | | ?????????????????????????????????????????????????? | | ?????????????????????????????????????????????????? | | ????????????????????????????###??????????????????? | | ?????????????????????? "##### ###????????????????? | | ???????????????????????" ?????????????????? | | ???????????????????????" #?????????????????? | | ????????????????????????#""## #?????????? ?????? | | ????????????????????????##R## ##????? ?????? | | ???????????????????????## ### ??????? | | ???????????? ""????????# g #???????????? | | ???????????? """#?????## [% #????????????? | | ???????###?? " ## ### ## #####????????????? | | ??????##"##?## ### R ##?###????????????????? | | ??????#"""###""""" R&%= @##?????????????????????? | | ??????# """"""" R! ###??????????????????????? | | ?????## """"" #?????????????????????????? | | ????## """"" # ##?????????????????????????? | | ????# " #?????????????????????????? | | ?????# #### ##?????????????????????????? | | ????## ###??# # ""?????????????????????? | | ????# ######???#### ""#????????????????????? | | ???## #### #####???## #""#????????????????????? | | ???# ## ##???? < "??????????????????????? | | ???#### #????? ""?????????????????????? | | ?????## ##????# ""?????????????????????? | | ????## ##????# ##?????????????????????? | | ????# ##????##??????????????????????? | | ????#### #????????????????????????????? | | ???????## #????????????????????????????? | | ????????# #????????????????????????????? | | ????????## ## #????????????????????????????? | | ?????????### #### ##????????????????????????????? | | ???????????###??####?????????????????????????????? | | ?????????????????????????????????????????????????? | | ?????????????????????????????????????????????????? | | ?????????????????????????????????????????????????? | | ?????????????????????????????????????????????????? | | ?????????????????????????????????????????????????? | +----------------------------------------------------+ Best States ------------- Heat Dissipation 35 Energy Generation 10 Energy Capacity 250 Matter Stores 300 Matter Capacity 300 Sight Range 16 Terrain Scan Density 10 Evasion (%) 50 Item Schematics ----------------- None Robot Schematics ------------------ S-10 Pest | -10/Materials | Hacked Fabricated ------------ Nothing Alien Tech Used ----------------- None Achievements -------------- None Challenges ------------ None Game ------ Seed DisruptorHackingGuard Manual? 0 Play Time 00:11:31 Cumulative 309.0 hours Start 2024.10.14 @ 09:12:54 End 2024.10.14 @ 09:23:07 Sessions 1 Manual Loads 0 Difficulty Rogue Special Mode None Game No. 132 Rogue 129 Adventurer 3 Explorer 0 Win Type - Total 0 Types 0/0/0/0/0/0/0/0/0 Lore% 24 Gallery% 52 Achievement% 39 Wizard Run 0 Options --------- Layout 2 ASCII 0 Keyboard 0 Movement Mouse Keybinds 0 Fullscreen 1 Font 24/Smallcaps Map View 50x44 Zoom Use 0% Tactical HUD 1 Map Filters NONE Filters NONE Steam 1 RUN: 278c1f98-8749-4a12-bc97-852e54f224cc